{"text_format":"1","workbook":"xlsx","n_sheets":3,"sheets":["Клиентская база","Расчет стоимости","Текущие заказы"],"not_rendered":{"charts":0,"images":0,"macros":0,"external_links":0,"defined_names":1,"comments":0,"pivot_tables":0},"unopened":[],"bounds":{"document_bytes":16777216,"sheet_cells":100000,"rows_first":2000,"rows_last":500,"rows_between":2000,"halvings":0,"cell_chars":16384,"cell_head_chars":4096},"cells_cut":0,"cells_raw":0,"read":"whole","date_system":"1900"}

{"sheet":"Клиентская база","index":0,"n_rows":715,"n_cols":13,"rows_kept":715,"cut":false,"hidden":false,"merged":[]}
[null,null,null,null,null,null,null,null,null,null,"Рег"]
[null,"№","Регион:","Наименование организации:","Контакты:","Дата контакта:","Результат:",{"$f":"COUNTIF(H3:H2225,\"*!*\")","v":1},"Дата следующего контакта:","Недозвон/перезвонить","Связаться позже","В работе","Отказ"]
[null,1,"ПНЗ","Неизвестно",null,null,"Уточнить контакты у Дарьи.",null,"2015-07-06"]
[null,2,"ПНЗ","Машины","хх-хх-хх","2015-06-16","Связаться с сотрудником отдела маркетинга Фамилия Отчество.",null,"2015-08-22"]
[null,3,"ПНЗ","Двери","хх-хх-хх","2015-06-30","Елена, отправлено КП на адрес penza_ofh@mail.ru ","!","2015-07-03"]
[null,4,"ПНЗ","Кинотеатр","хх-хх-хх","2015-06-11","Управляющий Илья Сергеевич.  Электронная почта kino1254@penza.ru ",null,"2015-07-11"]
[null,5,"ПНЗ"]
[null,6,"ПНЗ"]
[null,7,"ПНЗ"]
[null,8,"ПНЗ"]
[null,9,"ПНЗ"]
[null,10,"ПНЗ"]
[null,11,"ПНЗ"]
[null,12,"ПНЗ"]
[null,13,"ПНЗ"]
[null,14,"ПНЗ"]
[null,15,"ПНЗ"]
[null,16,"ПНЗ"]
[null,17,"ПНЗ"]
[null,18,"ПНЗ"]
[null,19,"ПНЗ"]
[null,20,"ПНЗ"]
[null,21,"ПНЗ"]
[null,22,"ПНЗ"]
[null,23,"ПНЗ"]
[null,24,"ПНЗ"]
[null,25,"ПНЗ"]
[null,26,"ПНЗ"]
[null,27,"ПНЗ"]
[null,28,"ПНЗ"]
[null,29,"ПНЗ"]
[null,30,"ПНЗ"]
[null,31,"ПНЗ"]
[null,32,"ПНЗ"]
[null,33,"ПНЗ"]
[null,34,"ПНЗ"]
[null,35,"ПНЗ"]
[null,36,"ПНЗ"]
[null,37,"ПНЗ"]
[null,38,"ПНЗ"]
[null,39,"ПНЗ"]
[null,40,"ПНЗ"]
[null,41,"ПНЗ"]
[null,42,"ПНЗ"]
[null,43,"ПНЗ"]
[null,44,"ПНЗ"]
[null,45,"ПНЗ"]
[null,46,"ПНЗ"]
[null,47,"ПНЗ"]
[null,48,"ПНЗ"]
[null,49,"ПНЗ"]
[null,50,"ПНЗ"]
[null,51,"ПНЗ"]
[null,52,"ПНЗ"]
[null,53,"ПНЗ"]
[null,54,"ПНЗ"]
[null,55,"ПНЗ"]
[null,56,"ПНЗ"]
[null,57,"ПНЗ"]
[null,58,"ПНЗ"]
[null,59,"ПНЗ"]
[null,60,"ПНЗ"]
[null,61,"ПНЗ"]
[null,null,"ПНЗ"]
[null,63,"ПНЗ"]
[null,64,"ПНЗ"]
[null,65,"ПНЗ"]
[null,66,"ПНЗ"]
[null,67,"ПНЗ"]
[null,68,"ПНЗ"]
[null,69,"ПНЗ"]
[null,70,"ПНЗ"]
[null,71,"ПНЗ"]
[null,72,"ПНЗ"]
[null,73,"ПНЗ"]
[null,74,"ПНЗ"]
[null,75,"ПНЗ"]
[null,76,"ПНЗ"]
[null,77,"ПНЗ"]
[null,78,"ПНЗ"]
[null,79,"ПНЗ"]
[null,80,"ПНЗ"]
[null,81,"ПНЗ"]
[null,82,"ПНЗ"]
[null,83,"ПНЗ"]
[null,84,"ПНЗ"]
[null,85,"ПНЗ"]
[null,86,"ПНЗ"]
[null,87,"ПНЗ"]
[null,88,"ПНЗ"]
[null,89,"ПНЗ"]
[null,90,"ПНЗ"]
[null,91,"ПНЗ"]
[null,92,"ПНЗ"]
[null,93,"ПНЗ"]
[null,94,"ПНЗ"]
[null,95,"ПНЗ"]
[null,96,"ПНЗ"]
[null,97,"ПНЗ"]
[null,98,"ПНЗ"]
[null,99,"ПНЗ"]
[null,100,"ПНЗ"]
[null,101,"ПНЗ"]
[null,102,"ПНЗ"]
[null,103,"ПНЗ"]
[null,104,"ПНЗ"]
[null,105,"ПНЗ"]
[null,106,"ПНЗ"]
[null,107,"ПНЗ"]
[null,108,"ПНЗ"]
[null,109,"ПНЗ"]
[null,110,"ПНЗ"]
[null,111,"ПНЗ"]
[null,112,"ПНЗ"]
[null,113,"ПНЗ"]
[null,114,"ПНЗ"]
[null,115,"ПНЗ"]
[null,116,"ПНЗ"]
[null,117,"ПНЗ"]
[null,118,"ПНЗ"]
[null,119,"ПНЗ"]
[null,120,"ПНЗ"]
[null,121,"ПНЗ"]
[null,122,"ПНЗ"]
[null,123,"ПНЗ"]
[null,124,"ПНЗ"]
[null,125,"ПНЗ"]
[null,126,"ПНЗ"]
[null,127,"ПНЗ"]
[null,128,"ПНЗ"]
[null,129,"ПНЗ"]
[null,130,"ПНЗ"]
[null,131,"ПНЗ"]
[null,132,"ПНЗ"]
[null,133,"ПНЗ"]
[null,134,"ПНЗ"]
[null,135,"ПНЗ"]
[null,136,"ПНЗ"]
[null,137,"ПНЗ"]
[null,138,"ПНЗ"]
[null,139,"ПНЗ"]
[null,140,"ПНЗ"]
[null,141]
[null,142]
[null,143]
[null,144]
[null,145]
[null,146]
[null,147]
[null,148]
[null,149]
[null,150]
[null,151]
[null,152]
[null,153]
[null,154]
[null,155]
[null,156]
[null,157]
[null,158]
[null,159]
[null,160]
[null,161]
[null,162]
[null,163]
[null,164]
[null,165]
[null,166]
[null,167]
[null,168]
[null,169]
[null,170]
[null,171]
[null,172]
[null,173]
[null,174]
[null,175]
[null,176]
[null,177]
[null,178]
[null,179]
[null,180]
[null,181]
[null,182]
[null,183]
[null,184]
[null,185]
[null,186]
[null,187]
[null,188]
[null,189]
[null,190]
[null,191]
[null,192]
[null,193]
[null,194]
[null,195]
[null,196]
[null,197]
[null,198]
[null,199]
[null,200]
[null,201]
[null,202]
[null,203]
[null,204]
[null,205]
[null,206]
[null,207]
[null,208]
[null,209]
[null,210]
[null,211]
[null,212]
[null,213]
[null,214]
[null,215]
[null,216]
[null,217]
[null,218]
[null,219]
[null,220]
[null,221]
[null,222]
[null,223]
[null,224]
[null,225]
[null,226]
[null,227]
[null,228]
[null,229]
[null,230]
[null,231]
[null,232]
[null,233]
[null,234]
[null,235]
[null,236]
[null,237]
[null,238]
[null,239]
[null,240]
[null,241]
[null,242]
[null,243]
[null,244]
[null,245]
[null,246]
[null,247]
[null,248]
[null,249]
[null,250]
[null,251]
[null,252]
[null,253]
[null,254]
[null,255]
[null,256]
[null,257]
[null,258]
[null,259]
[null,260]
[null,261]
[null,262]
[null,263]
[null,264]
[null,265]
[null,266]
[null,267]
[null,268]
[null,269]
[null,270]
[null,271]
[null,272]
[null,273]
[null,274]
[null,275]
[null,276]
[null,277]
[null,278]
[null,279]
[null,280]
[null,281]
[null,282]
[null,283]
[null,284]
[null,285]
[null,286]
[null,287]
[null,288]
[null,289]
[null,290]
[null,291]
[null,292]
[null,293]
[null,294]
[null,295]
[null,296]
[null,297]
[null,298]
[null,299]
[null,300]
[null,301]
[null,302]
[null,303]
[null,304]
[null,305]
[null,306]
[null,307]
[null,308,null,null,null,null,null,null,null," "]
[null,309]
[null,310]
[null,311]
[null,312]
[null,313]
[null,314]
[null,315]
[null,316]
[null,317]
[null,318]
[null,319]
[null,320]
[null,321]
[null,322]
[null,323]
[null,324]
[null,325]
[null,326]
[null,327]
[null,328]
[null,329]
[null,330]
[null,331]
[null,332]
[null,333]
[null,334]
[null,335]
[null,336]
[null,337]
[null,338]
[null,339]
[null,340]
[null,341]
[null,342]
[null,343]
[null,344]
[null,345]
[null,346]
[null,347]
[null,348]
[null,349]
[null,350]
[null,351]
[null,352]
[null,353]
[null,354]
[null,355]
[null,356]
[null,357]
[null,358]
[null,359]
[null,360]
[null,361]
[null,362]
[null,363]
[null,364]
[null,365]
[null,366]
[null,367]
[null,368]
[null,369]
[null,370]
[null,371]
[null,372]
[null,373]
[null,374]
[null,375]
[null,376]
[null,377]
[null,378]
[null,379]
[null,380]
[null,381]
[null,382]
[null,383]
[null,384]
[null,385]
[null,386]
[null,387]
[null,388]
[null,389]
[null,390]
[null,391]
[null,392]
[null,393]
[null,394]
[null,395]
[null,396]
[null,397]
[null,398]
[null,399]
[null,400]
[null,401]
[null,402]
[null,403]
[null,404]
[null,405]
[null,406]
[null,407]
[null,408]
[null,409]
[null,410]
[null,411]
[null,412]
[null,413]
[null,414]
[null,415]
[null,416]
[null,417]
[null,418]
[null,419]
[null,420]
[null,421]
[null,422]
[null,423]
[null,424]
[null,425]
[null,426]
[null,427]
[null,428]
[null,429]
[null,430]
[null,431]
[null,432]
[null,433]
[null,434]
[null,435]
[null,436]
[null,437]
[null,438]
[null,439]
[null,440]
[null,441]
[null,442]
[null,443]
[null,444]
[null,445]
[null,446]
[null,447]
[null,448]
[null,449]
[null,450]
[null,451]
[null,452]
[null,453]
[null,454]
[null,455]
[null,456]
[null,457]
[null,458]
[null,459]
[null,460]
[null,461]
[null,462]
[null,463]
[null,464]
[null,465]
[null,466]
[null,467]
[null,468]
[null,469]
[null,470]
[null,471]
[null,472]
[null,473]
[null,474]
[null,475]
[null,476]
[null,477]
[null,478]
[null,479]
[null,480]
[null,481]
[null,482]
[null,483]
[null,484]
[null,485]
[null,486]
[null,487]
[null,488]
[null,489]
[null,490]
[null,491]
[null,492]
[null,493]
[null,494]
[null,495]
[null,496]
[null,497]
[null,498]
[null,499]
[null,500]
[null,501]
[null,502]
[null,503]
[null,504]
[null,505]
[null,506]
[null,507]
[null,508]
[null,509]
[null,510]
[null,511]
[null,512]
[null,513]
[null,514]
[null,515]
[null,516]
[null,517]
[null,518]
[null,519]
[null,520]
[null,521]
[null,522]
[null,523]
[null,524]
[null,525]
[null,526]
[null,527]
[null,528]
[null,529]
[null,530]
[null,531]
[null,532]
[null,533]
[null,534]
[null,535]
[null,536]
[null,537]
[null,538]
[null,539]
[null,540]
[null,541]
[null,542]
[null,543]
[null,544]
[null,545]
[null,546]
[null,547]
[null,548]
[null,549]
[null,550]
[null,551]
[null,552]
[null,553]
[null,554]
[null,555]
[null,556]
[null,557]
[null,558]
[null,559]
[null,560]
[null,561]
[null,562]
[null,563]
[null,564]
[null,565]
[null,566]
[null,567]
[null,568]
[null,569]
[null,570]
[null,571]
[null,572]
[null,573]
[null,574]
[null,575]
[null,576]
[null,577]
[null,578]
[null,579]
[null,580]
[null,581]
[null,582]
[null,583]
[null,584]
[null,585]
[null,586]
[null,587]
[null,588]
[null,589]
[null,590]
[null,591]
[null,592]
[null,593]
[null,594]
[null,595]
[null,596]
[null,597]
[null,598]
[null,599]
[null,600]
[null,601]
[null,602]
[null,603]
[null,604]
[null,605]
[null,606]
[null,607]
[null,608]
[null,609]
[null,610]
[null,611]
[null,612]
[null,613]
[null,614]
[null,615]
[null,616]
[null,617]
[null,618]
[null,619]
[null,620]
[null,621]
[null,622]
[null,623]
[null,624]
[null,625]
[null,626]
[null,627]
[null,628]
[null,629]
[null,630]
[null,631]
[null,632]
[null,633]
[null,634]
[null,635]
[null,636]
[null,637]
[null,638]
[null,639]
[null,640]
[null,641]
[null,642]
[null,643]
[null,644]
[null,645]
[null,646]
[null,647]
[null,648]
[null,649]
[null,650]
[null,651]
[null,652]
[null,653]
[null,654]
[null,655]
[null,656]
[null,657]
[null,658]
[null,659]
[null,660]
[null,661]
[null,662]
[null,663]
[null,664]
[null,665]
[null,666]
[null,667]
[null,668]
[null,669]
[null,670]
[null,671]
[null,672]
[null,673]
[null,674]
[null,675]
[null,676]
[null,677]
[null,678]
[null,679]
[null,680]
[null,681]
[null,682]
[null,683]
[null,684]
[null,685]
[null,686]
[null,687]
[null,688]
[null,689]
[null,690]
[null,691]
[null,692]
[null,693]
[null,694]
[null,695]
[null,696]
[null,697]
[null,698]
[null,699]
[null,700]
[null,701]
[null,702]
[null,703]
[null,704]
[null,705]
[null,706]
[null,707]
[null,708]
[null,709]
[null,710]
[null,711]
[null,712]
[null,713]

{"sheet":"Расчет стоимости","index":1,"n_rows":48,"n_cols":6,"rows_kept":48,"cut":false,"hidden":false,"merged":[[1,4,1,5],[33,1,33,2],[1,1,1,2],[16,1,16,2],[20,1,22,1],[20,2,22,2]]}
[]
[null,"\"Буртасы\"",null,null,"\"Триумф\""]
[null,"Акрил",{"$f":"7*7000","v":49000},null,"Бегущая строка",14000]
[null,"Пластик",{"$f":"4*4000","v":16000},null,"Каркас",15000]
[null,"АКП",{"$f":"7*6500","v":45500},null,"АКП",{"$f":"6500*5","v":32500}]
[null,"Светодиоды",10000,null,"Светодиоды",{"$f":"8*250","v":2000}]
[null,"Трансформаторы",{"$f":"9*3500","v":31500},null,"Трансформаторы",{"$f":"1*3500","v":3500}]
[null,"Риски",3000,null,"Накладные расходы/метизы",10000]
[null,"Расходные материалы",10000,null,"Теплоизоляция",{"$f":"2*1500","v":3000}]
[null,"Себестоимость",{"$f":"SUM(C3:C9)","v":165000},null,"Себестоимость",{"$f":"SUM(F3:F9)","v":80000}]
[null,"К2",{"$f":"C10*2","v":330000},null,"К2",{"$f":"F10*2","v":160000}]
[null,"Монтаж",30000,null,"Монтаж",25000]
[null,"Фрезеровка",15000,null,"Фрезеровка",6000]
[null,"Транспорт",5000,null,"Транспорт",20000]
[null,"Итого:",{"$f":"SUM(C11:C14)","v":380000},null,"Итого:",{"$f":"SUM(F11:F14)","v":211000}]
[]
[null,"Банк \"Россия\""]
[null,"Таблички на дверь (2 шт)",{"$f":"550*2","v":1100}]
[null,"Таблички подвесные (2 шт)",{"$f":"1500*2","v":3000}]
[null,"Наклейки (3 шт)",{"$f":"500*3","v":1500}]
[null,"Панель",2500]
[]
[]
[null,"Светодиоды",5000]
[null,"Трансформаторы",{"$f":"1*3500","v":3500}]
[null,"Расходные материалы",2000]
[null,"Себестоимость",{"$f":"SUM(C21:C26)","v":13000}]
[null,"К2",{"$f":"C27*2","v":26000}]
[null,"Монтаж",3000]
[null,"Фрезеровка",1500]
[null,"Транспорт",5000]
[null,"Итого:",{"$f":"SUM(C28:C31)","v":35500}]
[]
[null,"\"Костер\""]
[null,"Бегущая строка",38000]
[null,"Каркас",8000]
[null,"АКП",{"$f":"3*6500","v":19500}]
[null,"Светодиоды",{"$f":"190*60","v":11400}]
[null,"Трансформаторы",{"$f":"1*3500","v":3500}]
[null,"Полистерол",{"$f":"6000*2","v":12000}]
[null,"Накладные расходы/метизы",10000]
[null,"МДФ",{"$f":"1500*8","v":12000}]
[null,"Себестоимость",{"$f":"SUM(C35:C42)","v":114400}]
[null,"К2",{"$f":"C43*2","v":228800}]
[null,"Монтаж",25000]
[null,"Фрезеровка",6000]
[null,"Транспорт",3000]
[null,"Итого:",{"$f":"SUM(C44:C47)","v":262800}]

{"sheet":"Текущие заказы","index":2,"n_rows":384,"n_cols":14,"rows_kept":384,"cut":false,"hidden":false,"merged":[[1,1,2,1],[1,8,2,8],[1,7,2,7],[1,3,1,4],[1,5,2,5],[1,2,2,2]]}
[]
[null,"Название:","Общая сумма:","Оплачено:",null,"Долг:",null,"Контракт в работе","Контракт закрыт","Итого (общая сумма):","Итого (задолжность):","План на месяц:","Факт:","% выполнения:"]
[null,null,null,"Сумма:","Дата:",null,null,null,null,{"$f":"SUM(C4:C384)","v":293390},{"$f":"SUM(F4:F384)","v":154810},350000,{"$f":"J3-K3","v":138580},{"$f":"M3/L3","v":0.39594285714285715}]
[null,"Игорь Чернышев",4430,4430,"2015-06-11",{"$f":"C4-D4","v":0}]
[null,"Игорь Чернышев",21700,null,null,{"$f":"C5-D5","v":21700}]
[null,"Хасан",900,900,"2015-06-11",{"$f":"C6-D6","v":0}]
[null,"Влад",4300,2650,"2015-06-17",{"$f":"C7-D7","v":1650}]
[null,"Автомойка на западной",2050,2050,"2015-06-17",0]
[null,"Александр (автосервис)",14000,6000,"2015-07-03",8000]
[null,"Александр (автосервис)",2000,2000,"2015-06-18",0]
[null,"Квадрациклы",600,600,"2015-06-17",0]
[null,"Восход",2550,2550,"2015-06-19",0]
[null,"Пиво \"Прага\"/Продукты из казахстана",24000,10000,"2015-06-22",14000]
[null,"Триумф (Петровск)",214460,105000,"2015-06-24",109460]
[null,"Элекстроинструмент",2400,2400,"2015-07-06",0]
[null,null,null,null,null,0]
[null,null,null,null,null,0]
[null,null,null,null,null,0]
[null,null,null,null,null,0]
[null,null,null,null,null,0]
[null,null,null,null,null,0]
[null,null,null,null,null,0]
[null,null,null,null,null,0]
[null,null,null,null,null,0]
[null,null,null,null,null,0]
[null,null,null,null,null,0]
[null,null,null,null,null,0]
[null,null,null,null,null,0]
[null,null,null,null,null,0]
[null,null,null,null,null,0]
[null,null,null,null,null,0]
[null,null,null,null,null,0]
[null,null,null,null,null,0]
[null,null,null,null,null,0]
[null,null,null,null,null,0]
[null,null,null,null,null,0]
[null,null,null,null,null,0]
[null,null,null,null,null,0]
[null,null,null,null,null,0]
[null,null,null,null,null,0]
[null,null,null,null,null,0]
[null,null,null,null,null,{"$f":"C42-D42","v":0}]
[null,null,null,null,null,0]
[null,null,null,null,null,0]
[null,null,null,null,null,0]
[null,null,null,null,null,0]
[null,null,null,null,null,0]
[null,null,null,null,null,{"$f":"C48-D48","v":0}]
[null,null,null,null,null,0]
[null,null,null,null,null,0]
[null,null,null,null,null,0]
[null,null,null,null,null,0]
[null,null,null,null,null,0]
[null,null,null,null,null,0]
[null,null,null,null,null,0]
[null,null,null,null,null,0]
[null,null,null,null,null,0]
[null,null,null,null,null,0]
[null,null,null,null,null,0]
[null,null,null,null,null,0]
[null,null,null,null,null,0]
[null,null,null,null,null,0]
[null,null,null,null,null,0]
[null,null,null,null,null,0]
[null,null,null,null,null,0]
[null,null,null,null,null,0]
[null,null,null,null,null,0]
[null,null,null,null,null,0]
[null,null,null,null,null,0]
[null,null,null,null,null,0]
[null,null,null,null,null,0]
[null,null,null,null,null,0]
[null,null,null,null,null,0]
[null,null,null,null,null,0]
[null,null,null,null,null,0]
[null,null,null,null,null,0]
[null,null,null,null,null,0]
[null,null,null,null,null,0]
[null,null,null,null,null,0]
[null,null,null,null,null,0]
[null,null,null,null,null,0]
[null,null,null,null,null,0]
[null,null,null,null,null,0]
[null,null,null,null,null,0]
[null,null,null,null,null,0]
[null,null,null,null,null,0]
[null,null,null,null,null,0]
[null,null,null,null,null,0]
[null,null,null,null,null,0]
[null,null,null,null,null,0]
[null,null,null,null,null,0]
[null,null,null,null,null,0]
[null,null,null,null,null,0]
[null,null,null,null,null,0]
[null,null,null,null,null,0]
[null,null,null,null,null,0]
[null,null,null,null,null,0]
[null,null,null,null,null,0]
[null,null,null,null,null,0]
[null,null,null,null,null,0]
[null,null,null,null,null,0]
[null,null,null,null,null,0]
[null,null,null,null,null,0]
[null,null,null,null,null,0]
[null,null,null,null,null,0]
[null,null,null,null,null,0]
[null,null,null,null,null,0]
[null,null,null,null,null,0]
[null,null,null,null,null,0]
[null,null,null,null,null,0]
[null,null,null,null,null,0]
[null,null,null,null,null,{"$f":"C112-D112","v":0}]
[null,null,null,null,null,0]
[null,null,null,null,null,0]
[null,null,null,null,null,0]
[null,null,null,null,null,0]
[null,null,null,null,null,0]
[null,null,null,null,null,0]
[null,null,null,null,null,0]
[null,null,null,null,null,0]
[null,null,null,null,null,0]
[null,null,null,null,null,0]
[null,null,null,null,null,0]
[null,null,null,null,null,0]
[null,null,null,null,null,0]
[null,null,null,null,null,0]
[null,null,null,null,null,0]
[null,null,null,null,null,0]
[null,null,null,null,null,0]
[null,null,null,null,null,0]
[null,null,null,null,null,0]
[null,null,null,null,null,0]
[null,null,null,null,null,0]
[null,null,null,null,null,0]
[null,null,null,null,null,0]
[null,null,null,null,null,0]
[null,null,null,null,null,0]
[null,null,null,null,null,0]
[null,null,null,null,null,0]
[null,null,null,null,null,0]
[null,null,null,null,null,0]
[null,null,null,null,null,0]
[null,null,null,null,null,0]
[null,null,null,null,null,0]
[null,null,null,null,null,0]
[null,null,null,null,null,0]
[null,null,null,null,null,0]
[null,null,null,null,null,0]
[null,null,null,null,null,0]
[null,null,null,null,null,0]
[null,null,null,null,null,0]
[null,null,null,null,null,0]
[null,null,null,null,null,0]
[null,null,null,null,null,0]
[null,null,null,null,null,0]
[null,null,null,null,null,0]
[null,null,null,null,null,0]
[null,null,null,null,null,0]
[null,null,null,null,null,0]
[null,null,null,null,null,0]
[null,null,null,null,null,0]
[null,null,null,null,null,0]
[null,null,null,null,null,0]
[null,null,null,null,null,0]
[null,null,null,null,null,0]
[null,null,null,null,null,0]
[null,null,null,null,null,0]
[null,null,null,null,null,0]
[null,null,null,null,null,0]
[null,null,null,null,null,0]
[null,null,null,null,null,0]
[null,null,null,null,null,0]
[null,null,null,null,null,0]
[null,null,null,null,null,0]
[null,null,null,null,null,0]
[null,null,null,null,null,{"$f":"C176-D176","v":0}]
[null,null,null,null,null,0]
[null,null,null,null,null,0]
[null,null,null,null,null,0]
[null,null,null,null,null,0]
[null,null,null,null,null,0]
[null,null,null,null,null,0]
[null,null,null,null,null,0]
[null,null,null,null,null,0]
[null,null,null,null,null,0]
[null,null,null,null,null,0]
[null,null,null,null,null,0]
[null,null,null,null,null,0]
[null,null,null,null,null,0]
[null,null,null,null,null,0]
[null,null,null,null,null,0]
[null,null,null,null,null,0]
[null,null,null,null,null,0]
[null,null,null,null,null,0]
[null,null,null,null,null,0]
[null,null,null,null,null,0]
[null,null,null,null,null,0]
[null,null,null,null,null,0]
[null,null,null,null,null,0]
[null,null,null,null,null,0]
[null,null,null,null,null,0]
[null,null,null,null,null,0]
[null,null,null,null,null,0]
[null,null,null,null,null,0]
[null,null,null,null,null,0]
[null,null,null,null,null,0]
[null,null,null,null,null,0]
[null,null,null,null,null,0]
[null,null,null,null,null,0]
[null,null,null,null,null,0]
[null,null,null,null,null,0]
[null,null,null,null,null,0]
[null,null,null,null,null,0]
[null,null,null,null,null,0]
[null,null,null,null,null,0]
[null,null,null,null,null,0]
[null,null,null,null,null,0]
[null,null,null,null,null,0]
[null,null,null,null,null,0]
[null,null,null,null,null,0]
[null,null,null,null,null,0]
[null,null,null,null,null,0]
[null,null,null,null,null,0]
[null,null,null,null,null,0]
[null,null,null,null,null,0]
[null,null,null,null,null,0]
[null,null,null,null,null,0]
[null,null,null,null,null,0]
[null,null,null,null,null,0]
[null,null,null,null,null,0]
[null,null,null,null,null,0]
[null,null,null,null,null,0]
[null,null,null,null,null,0]
[null,null,null,null,null,0]
[null,null,null,null,null,0]
[null,null,null,null,null,0]
[null,null,null,null,null,0]
[null,null,null,null,null,0]
[null,null,null,null,null,0]
[null,null,null,null,null,{"$f":"C240-D240","v":0}]
[null,null,null,null,null,0]
[null,null,null,null,null,0]
[null,null,null,null,null,0]
[null,null,null,null,null,0]
[null,null,null,null,null,0]
[null,null,null,null,null,0]
[null,null,null,null,null,0]
[null,null,null,null,null,0]
[null,null,null,null,null,0]
[null,null,null,null,null,0]
[null,null,null,null,null,0]
[null,null,null,null,null,0]
[null,null,null,null,null,0]
[null,null,null,null,null,0]
[null,null,null,null,null,0]
[null,null,null,null,null,0]
[null,null,null,null,null,0]
[null,null,null,null,null,0]
[null,null,null,null,null,0]
[null,null,null,null,null,0]
[null,null,null,null,null,0]
[null,null,null,null,null,0]
[null,null,null,null,null,0]
[null,null,null,null,null,0]
[null,null,null,null,null,0]
[null,null,null,null,null,0]
[null,null,null,null,null,0]
[null,null,null,null,null,0]
[null,null,null,null,null,0]
[null,null,null,null,null,0]
[null,null,null,null,null,0]
[null,null,null,null,null,0]
[null,null,null,null,null,0]
[null,null,null,null,null,0]
[null,null,null,null,null,0]
[null,null,null,null,null,0]
[null,null,null,null,null,0]
[null,null,null,null,null,0]
[null,null,null,null,null,0]
[null,null,null,null,null,0]
[null,null,null,null,null,0]
[null,null,null,null,null,0]
[null,null,null,null,null,0]
[null,null,null,null,null,0]
[null,null,null,null,null,0]
[null,null,null,null,null,0]
[null,null,null,null,null,0]
[null,null,null,null,null,0]
[null,null,null,null,null,0]
[null,null,null,null,null,0]
[null,null,null,null,null,0]
[null,null,null,null,null,0]
[null,null,null,null,null,0]
[null,null,null,null,null,0]
[null,null,null,null,null,0]
[null,null,null,null,null,0]
[null,null,null,null,null,0]
[null,null,null,null,null,0]
[null,null,null,null,null,0]
[null,null,null,null,null,0]
[null,null,null,null,null,0]
[null,null,null,null,null,0]
[null,null,null,null,null,0]
[null,null,null,null,null,{"$f":"C304-D304","v":0}]
[null,null,null,null,null,0]
[null,null,null,null,null,0]
[null,null,null,null,null,0]
[null,null,null,null,null,0]
[null,null,null,null,null,0]
[null,null,null,null,null,0]
[null,null,null,null,null,0]
[null,null,null,null,null,0]
[null,null,null,null,null,0]
[null,null,null,null,null,0]
[null,null,null,null,null,0]
[null,null,null,null,null,0]
[null,null,null,null,null,0]
[null,null,null,null,null,0]
[null,null,null,null,null,0]
[null,null,null,null,null,0]
[null,null,null,null,null,0]
[null,null,null,null,null,0]
[null,null,null,null,null,0]
[null,null,null,null,null,0]
[null,null,null,null,null,0]
[null,null,null,null,null,0]
[null,null,null,null,null,0]
[null,null,null,null,null,0]
[null,null,null,null,null,0]
[null,null,null,null,null,0]
[null,null,null,null,null,0]
[null,null,null,null,null,0]
[null,null,null,null,null,0]
[null,null,null,null,null,0]
[null,null,null,null,null,0]
[null,null,null,null,null,0]
[null,null,null,null,null,0]
[null,null,null,null,null,0]
[null,null,null,null,null,0]
[null,null,null,null,null,0]
[null,null,null,null,null,0]
[null,null,null,null,null,0]
[null,null,null,null,null,0]
[null,null,null,null,null,0]
[null,null,null,null,null,0]
[null,null,null,null,null,0]
[null,null,null,null,null,0]
[null,null,null,null,null,0]
[null,null,null,null,null,0]
[null,null,null,null,null,0]
[null,null,null,null,null,0]
[null,null,null,null,null,0]
[null,null,null,null,null,0]
[null,null,null,null,null,0]
[null,null,null,null,null,0]
[null,null,null,null,null,0]
[null,null,null,null,null,0]
[null,null,null,null,null,0]
[null,null,null,null,null,0]
[null,null,null,null,null,0]
[null,null,null,null,null,0]
[null,null,null,null,null,0]
[null,null,null,null,null,0]
[null,null,null,null,null,0]
[null,null,null,null,null,0]
[null,null,null,null,null,0]
[null,null,null,null,null,0]
[null,null,null,null,null,{"$f":"C368-D368","v":0}]
[null,null,null,null,null,0]
[null,null,null,null,null,0]
[null,null,null,null,null,0]
[null,null,null,null,null,0]
[null,null,null,null,null,0]
[null,null,null,null,null,0]
[null,null,null,null,null,0]
[null,null,null,null,null,0]
[null,null,null,null,null,0]
[null,null,null,null,null,0]
[null,null,null,null,null,0]
[null,null,null,null,null,0]
[null,null,null,null,null,0]
[null,null,null,null,null,0]
[null,null,null,null,null,0]
[null,null,null,null,null,{"$f":"C384-D384","v":0}]